[Event "*** Titled Tuesday Blitz"]
[Site "Chess.com"]
[Date "2020.04.07"]
[Round "5"]
[White "ChessBitl"]
[Black "Chigorinetz"]
[Result "0-1"]
[WhiteElo "2318"]
[BlackElo "2511"]
[TimeControl "180+1"]
[EndTime "13:57:20 PDT"]
[Termination "Chigorinetz won by resignation"]

1. e4 {[%clk 0:03:00.5]} 1... c5 {[%clk 0:02:59.4]} 2. Nf3 {[%clk 0:03:00]} 2...
Nc6 {[%clk 0:02:59.2]} 3. d4 {[%clk 0:03:00.5]} 3... cxd4 {[%clk 0:02:58.5]} 4.
Nxd4 {[%clk 0:03:01.1]} 4... g6 {[%clk 0:02:58.9]} 5. c4 {[%clk 0:03:00.7]} 5...
Bg7 {[%clk 0:02:59]} 6. Be3 {[%clk 0:03:01.1]} 6... Nf6 {[%clk 0:02:59.2]} 7.
Nc3 {[%clk 0:03:01.4]} 7... Ng4 {[%clk 0:02:59.2]} 8. Qxg4 {[%clk 0:03:00.1]}
8... Nxd4 {[%clk 0:02:59.7]} 9. Qd1 {[%clk 0:03:00.3]} 9... Ne6 {[%clk 0:03:00]}
10. f3 {[%clk 0:03:00.3]} 10... Bxc3+ {[%clk 0:02:55.7]} 11. bxc3 {[%clk
0:02:59.9]} 11... Qa5 {[%clk 0:02:56.1]} 12. Qd2 {[%clk 0:02:55.8]} 12... d6
{[%clk 0:02:55.1]} 13. Be2 {[%clk 0:02:55]} 13... Bd7 {[%clk 0:02:34.1]} 14. O-O
{[%clk 0:02:53.3]} 14... Rc8 {[%clk 0:02:33.2]} 15. Rab1 {[%clk 0:02:39.7]}
15... b6 {[%clk 0:02:32]} 16. f4 {[%clk 0:02:37]} 16... f6 {[%clk 0:02:19.8]}
17. f5 {[%clk 0:02:26.6]} 17... Nc5 {[%clk 0:02:12.9]} 18. Qd4 {[%clk 0:02:15]}
18... Bc6 {[%clk 0:02:00.6]} 19. Bf3 {[%clk 0:01:57.9]} 19... Nd7 {[%clk
0:02:00.2]} 20. fxg6 {[%clk 0:01:45.2]} 20... hxg6 {[%clk 0:01:58.7]} 21. Bg4
{[%clk 0:01:45.7]} 21... Qe5 {[%clk 0:01:49.3]} 22. Qxe5 {[%clk 0:01:36.4]}
22... fxe5 {[%clk 0:01:38.5]} 23. Bf3 {[%clk 0:01:27.6]} 23... Nf6 {[%clk
0:01:34.9]} 24. a4 {[%clk 0:01:21.5]} 24... Bxe4 {[%clk 0:01:13.2]} 25. Bxe4
{[%clk 0:01:16.1]} 25... Nxe4 {[%clk 0:01:14.1]} 26. a5 {[%clk 0:01:16.8]} 26...
Rxc4 {[%clk 0:01:05.1]} 27. axb6 {[%clk 0:01:15.2]} 27... axb6 {[%clk 0:01:06]}
28. Rxb6 {[%clk 0:01:11.7]} 28... Kd7 {[%clk 0:01:04.9]} 29. Rb7+ {[%clk
0:01:00.4]} 29... Ke6 {[%clk 0:00:58.9]} 30. Ra1 {[%clk 0:01:00.6]} 30... Rxc3
{[%clk 0:00:56.4]} 31. Bc1 {[%clk 0:00:50.6]} 31... Rc2 {[%clk 0:00:45.8]} 32.
Bb2 {[%clk 0:00:47]} 32... Rf8 {[%clk 0:00:41.9]} 33. Raa7 {[%clk 0:00:42.9]}
33... Rf7 {[%clk 0:00:40.6]} 34. h3 {[%clk 0:00:42.8]} 34... g5 {[%clk
0:00:39.6]} 35. Ra4 {[%clk 0:00:40.6]} 35... Rff2 {[%clk 0:00:33]} 36. Rxe4
{[%clk 0:00:30.7]} 36... Rxg2+ {[%clk 0:00:32.3]} 37. Kf1 {[%clk 0:00:28.9]}
37... Rcf2+ {[%clk 0:00:29.1]} 38. Ke1 {[%clk 0:00:28.3]} 38... Rxb2 {[%clk
0:00:29.5]} 39. Rxb2 {[%clk 0:00:22.6]} 39... Rxb2 {[%clk 0:00:30.4]} 40. Ra4
{[%clk 0:00:19.1]} 40... d5 {[%clk 0:00:29.6]} 41. h4 {[%clk 0:00:16.8]} 41...
gxh4 {[%clk 0:00:28.8]} 42. Rxh4 {[%clk 0:00:17.4]} 42... d4 {[%clk 0:00:29.2]}
43. Kd1 {[%clk 0:00:17.9]} 43... Kd5 {[%clk 0:00:28.5]} 44. Kc1 {[%clk
0:00:18.5]} 44... Rg2 {[%clk 0:00:27.3]} 45. Rh7 {[%clk 0:00:19]} 45... e4
{[%clk 0:00:25.1]} 46. Kd1 {[%clk 0:00:19.4]} 46... e3 {[%clk 0:00:24.5]} 47.
Rxe7 {[%clk 0:00:19.1]} 47... Kc4 {[%clk 0:00:24.1]} 48. Ra7 {[%clk 0:00:17.5]}
48... Kd3 {[%clk 0:00:23.8]} 49. Ra3+ {[%clk 0:00:16.7]} 49... Ke4 {[%clk
0:00:22.3]} 50. Ra8 {[%clk 0:00:16.6]} 50... Rg1+ {[%clk 0:00:21.4]} 51. Kc2
{[%clk 0:00:15.7]} 51... d3+ {[%clk 0:00:20.7]} 52. Kc3 {[%clk 0:00:16.3]} 52...
d2 {[%clk 0:00:20.1]} 53. Re8+ {[%clk 0:00:14.2]} 53... Kf4 {[%clk 0:00:19.8]}
54. Rf8+ {[%clk 0:00:14.2]} 54... Ke5 {[%clk 0:00:19.5]} 55. Re8+ {[%clk
0:00:14.5]} 55... Kf6 {[%clk 0:00:18.6]} 0-1

[Event "*** Titled Tuesday Blitz"]
[Site "Chess.com"]
[Date "2020.04.07"]
[Round "5"]
[White "aa175"]
[Black "Qvalda"]
[Result "1-0"]
[WhiteElo "2257"]
[BlackElo "2383"]
[TimeControl "180+1"]
[EndTime "13:57:21 PDT"]
[Termination "aa175 won by resignation"]

1. d4 {[%clk 0:03:00.9]} 1... g6 {[%clk 0:02:53.9]} 2. Bf4 {[%clk 0:02:59.9]}
2... Bg7 {[%clk 0:02:53.8]} 3. e3 {[%clk 0:02:56.8]} 3... d6 {[%clk 0:02:54.1]}
4. Nf3 {[%clk 0:02:57]} 4... Nd7 {[%clk 0:02:54.6]} 5. Bc4 {[%clk 0:02:56.8]}
5... e6 {[%clk 0:02:30.4]} 6. O-O {[%clk 0:02:54.7]} 6... Ne7 {[%clk 0:02:29.4]}
7. Nbd2 {[%clk 0:02:48.1]} 7... O-O {[%clk 0:02:29.3]} 8. h3 {[%clk 0:02:48.6]}
8... e5 {[%clk 0:02:20.8]} 9. Bg3 {[%clk 0:02:34]} 9... Nf5 {[%clk 0:02:10.6]}
10. dxe5 {[%clk 0:02:29.5]} 10... Nxg3 {[%clk 0:02:01.1]} 11. fxg3 {[%clk
0:02:02.7]} 11... Nxe5 {[%clk 0:02:00.2]} 12. Nxe5 {[%clk 0:02:01.3]} 12... Bxe5
{[%clk 0:02:01.1]} 13. c3 {[%clk 0:01:58.8]} 13... Qg5 {[%clk 0:01:48.2]} 14.
Qf3 {[%clk 0:01:51.7]} 14... Qxg3 {[%clk 0:01:31]} 15. Bxf7+ {[%clk 0:01:47.8]}
15... Kg7 {[%clk 0:01:27.2]} 16. Qxg3 {[%clk 0:01:44.1]} 16... Bxg3 {[%clk
0:01:28.1]} 17. Bd5 {[%clk 0:01:43.9]} 17... c6 {[%clk 0:00:51.5]} 18. Rxf8
{[%clk 0:01:42.1]} 18... Kxf8 {[%clk 0:00:52.4]} 19. Rf1+ {[%clk 0:01:42.7]}
19... Ke8 {[%clk 0:00:51]} 20. Bg8 {[%clk 0:01:41.9]} 20... Bf5 {[%clk
0:00:25.9]} 21. Bxh7 {[%clk 0:01:38.4]} 21... d5 {[%clk 0:00:23.3]} 22. Rf3
{[%clk 0:00:49.5]} 22... Be5 {[%clk 0:00:22.7]} 23. g4 {[%clk 0:00:30.2]} 23...
Bc2 {[%clk 0:00:20.9]} 24. e4 {[%clk 0:00:30.2]} 24... d4 {[%clk 0:00:13.7]} 25.
Bxg6+ {[%clk 0:00:30]} 25... Ke7 {[%clk 0:00:13.2]} 26. Rf7+ {[%clk 0:00:27.1]}
26... Ke6 {[%clk 0:00:12.7]} 27. Nf3 {[%clk 0:00:11.8]} 27... dxc3 {[%clk
0:00:11.7]} 28. bxc3 {[%clk 0:00:12.7]} 28... Bxc3 {[%clk 0:00:11.5]} 29. Ng5+
{[%clk 0:00:13]} 29... Kd6 {[%clk 0:00:11.6]} 30. e5+ {[%clk 0:00:12.1]} 30...
Bxe5 {[%clk 0:00:10.2]} 31. Bxc2 {[%clk 0:00:12.2]} 31... Bd4+ {[%clk
0:00:05.3]} 32. Kg2 {[%clk 0:00:11.6]} 32... Re8 {[%clk 0:00:05.7]} 33. Ne4+
{[%clk 0:00:10.2]} 33... Kd5 {[%clk 0:00:04.3]} 34. Rd7+ {[%clk 0:00:07.8]}
34... Kc4 {[%clk 0:00:03.8]} 35. Nd6+ {[%clk 0:00:06.9]} 35... Kc3 {[%clk
0:00:03.8]} 36. Nxe8 {[%clk 0:00:04.3]} 36... c5 {[%clk 0:00:04.2]} 37. Bf5
{[%clk 0:00:01.7]} 37... b5 {[%clk 0:00:02.7]} 38. h4 {[%clk 0:00:01.9]} 38...
b4 {[%clk 0:00:03.2]} 39. Rxd4 {[%clk 0:00:01.7]} 39... a6 {[%clk 0:00:03.4]}
40. Rc4+ {[%clk 0:00:01.7]} 40... Kxc4 {[%clk 0:00:03.3]} 41. h5 {[%clk
0:00:02.3]} 41... a5 {[%clk 0:00:03.3]} 42. h6 {[%clk 0:00:02.7]} 42... b3
{[%clk 0:00:04.2]} 43. axb3+ {[%clk 0:00:02.6]} 43... Kb4 {[%clk 0:00:03.9]} 44.
h7 {[%clk 0:00:02.6]} 44... c4 {[%clk 0:00:04.8]} 45. h8=Q {[%clk 0:00:02.8]}
45... c3 {[%clk 0:00:05.7]} 46. Qd4+ {[%clk 0:00:02]} 46... Ka3 {[%clk 0:00:06]}
47. Qxc3 {[%clk 0:00:01.7]} 47... Ka2 {[%clk 0:00:06.5]} 48. Qc2+ {[%clk
0:00:01.5]} 48... Ka3 {[%clk 0:00:06.8]} 49. Be4 {[%clk 0:00:01.8]} 49... Kb4
{[%clk 0:00:06.9]} 50. Nd6 {[%clk 0:00:01.6]} 50... a4 {[%clk 0:00:06.8]} 51.
Kf3 {[%clk 0:00:02.1]} 51... Ka3 {[%clk 0:00:07.2]} 52. Qc4 {[%clk 0:00:02.1]}
52... axb3 {[%clk 0:00:07.2]} 53. Nb5+ {[%clk 0:00:02.2]} 53... Kb2 {[%clk
0:00:07.3]} 54. Qc3+ {[%clk 0:00:02.4]} 54... Ka2 {[%clk 0:00:06.9]} 55. Qa5+
{[%clk 0:00:02.5]} 55... Kb2 {[%clk 0:00:07]} 56. Qd2+ {[%clk 0:00:02.4]} 56...
Ka1 {[%clk 0:00:06.7]} 57. Qc1+ {[%clk 0:00:01.5]} 57... Ka2 {[%clk 0:00:06.7]}
58. Bb1+ {[%clk 0:00:02]} 58... Ka1 {[%clk 0:00:06.9]} 59. Bc2+ {[%clk
0:00:02.3]} 59... Ka2 {[%clk 0:00:07.4]} 60. Bxb3+ {[%clk 0:00:02.6]} 60... Kxb3
{[%clk 0:00:07.6]} 61. Nd4+ {[%clk 0:00:03.1]} 61... Kb4 {[%clk 0:00:07.5]} 62.
Nf5 {[%clk 0:00:04]} 62... Kb5 {[%clk 0:00:07.6]} 63. Kf4 {[%clk 0:00:04.9]}
63... Ka6 {[%clk 0:00:07.9]} 64. g5 {[%clk 0:00:05.8]} 64... Kb5 {[%clk
0:00:08.2]} 65. g6 {[%clk 0:00:06.7]} 1-0

[Event "*** Titled Tuesday Blitz"]
[Site "Chess.com"]
[Date "2020.04.07"]
[Round "5"]
[White "Vaathi_Coming"]
[Black "SavelijTartakover"]
[Result "1-0"]
[WhiteElo "2845"]
[BlackElo "2624"]
[TimeControl "180+1"]
[EndTime "13:57:22 PDT"]
[Termination "Vaathi_Coming won on time"]

1. e4 {[%clk 0:03:00.9]} 1... e6 {[%clk 0:02:59.3]} 2. d4 {[%clk 0:03:01]} 2...
d5 {[%clk 0:02:59.2]} 3. e5 {[%clk 0:03:01.9]} 3... c5 {[%clk 0:02:58.7]} 4. c3
{[%clk 0:03:02.8]} 4... Nc6 {[%clk 0:02:59.1]} 5. Nf3 {[%clk 0:03:03.1]} 5...
Qb6 {[%clk 0:02:59.5]} 6. Bd3 {[%clk 0:03:03.4]} 6... cxd4 {[%clk 0:02:58.6]} 7.
cxd4 {[%clk 0:03:03.3]} 7... Bd7 {[%clk 0:02:58.8]} 8. O-O {[%clk 0:03:03.8]}
8... Nxd4 {[%clk 0:02:57.8]} 9. Nbd2 {[%clk 0:03:04.4]} 9... Nc6 {[%clk
0:02:44.1]} 10. Nb3 {[%clk 0:03:03]} 10... Nge7 {[%clk 0:02:41.5]} 11. Be3
{[%clk 0:03:02.7]} 11... Qd8 {[%clk 0:02:41.3]} 12. Nc5 {[%clk 0:02:44.5]} 12...
Bc8 {[%clk 0:02:39.8]} 13. Rc1 {[%clk 0:02:40.9]} 13... Ng6 {[%clk 0:02:37.3]}
14. Bb5 {[%clk 0:02:40.6]} 14... Bxc5 {[%clk 0:02:33.7]} 15. Bxc5 {[%clk
0:02:41.5]} 15... Bd7 {[%clk 0:02:31.4]} 16. Bxc6 {[%clk 0:02:30.3]} 16... Bxc6
{[%clk 0:02:28.9]} 17. Qd4 {[%clk 0:02:30.3]} 17... f5 {[%clk 0:02:07.2]} 18. h4
{[%clk 0:02:24.7]} 18... h6 {[%clk 0:02:06.2]} 19. h5 {[%clk 0:02:19.5]} 19...
Ne7 {[%clk 0:02:05.5]} 20. Nh4 {[%clk 0:02:19.1]} 20... Kf7 {[%clk 0:01:49.8]}
21. Bxe7 {[%clk 0:02:02.4]} 21... Qxe7 {[%clk 0:01:36.6]} 22. Ng6 {[%clk
0:02:02.6]} 22... Qd8 {[%clk 0:01:24]} 23. Nxh8+ {[%clk 0:01:59.9]} 23... Qxh8
{[%clk 0:01:23.8]} 24. b4 {[%clk 0:01:59]} 24... Qe8 {[%clk 0:01:11.5]} 25. b5
{[%clk 0:01:57.9]} 25... Bxb5 {[%clk 0:01:10]} 26. Rc7+ {[%clk 0:01:58.8]} 26...
Kg8 {[%clk 0:01:09.9]} 27. Rxb7 {[%clk 0:01:55.3]} 27... Bxf1 {[%clk 0:01:06.7]}
28. Kxf1 {[%clk 0:01:56.2]} 28... Qc6 {[%clk 0:00:59.8]} 29. Qb2 {[%clk
0:01:43.6]} 29... Kh7 {[%clk 0:00:51]} 30. Kg1 {[%clk 0:01:41.2]} 30... Rc8
{[%clk 0:00:48.9]} 31. Rxa7 {[%clk 0:01:39.7]} 31... Qc1+ {[%clk 0:00:47.7]} 32.
Qxc1 {[%clk 0:01:40]} 32... Rxc1+ {[%clk 0:00:47.8]} 33. Kh2 {[%clk 0:01:40.9]}
33... Re1 {[%clk 0:00:41.1]} 34. f4 {[%clk 0:01:38.3]} 34... Re4 {[%clk
0:00:39.1]} 35. Kg3 {[%clk 0:01:35.5]} 35... d4 {[%clk 0:00:34.1]} 36. Ra3
{[%clk 0:01:03.7]} 36... Re2 {[%clk 0:00:25.5]} 37. Kf3 {[%clk 0:01:02.8]} 37...
Rc2 {[%clk 0:00:24.1]} 38. Ra6 {[%clk 0:01:02]} 38... d3 {[%clk 0:00:22.6]} 39.
Rxe6 {[%clk 0:00:57.5]} 39... Rxa2 {[%clk 0:00:21.6]} 40. Rd6 {[%clk 0:00:57.6]}
40... Ra3 {[%clk 0:00:21.5]} 41. Ke3 {[%clk 0:00:42.2]} 41... Ra2 {[%clk
0:00:16.5]} 42. g3 {[%clk 0:00:25.2]} 42... Rg2 {[%clk 0:00:15.8]} 43. Rxd3
{[%clk 0:00:24.3]} 43... Rxg3+ {[%clk 0:00:15.1]} 44. Kd4 {[%clk 0:00:24.2]}
44... Rg4 {[%clk 0:00:14.2]} 45. e6 {[%clk 0:00:23]} 45... Rxf4+ {[%clk
0:00:13.6]} 46. Ke5 {[%clk 0:00:23.4]} 46... Rf1 {[%clk 0:00:10.5]} 47. Re3
{[%clk 0:00:20.8]} 47... Kg8 {[%clk 0:00:08]} 48. Kd6 {[%clk 0:00:17.8]} 48...
Rd1+ {[%clk 0:00:07.2]} 49. Ke7 {[%clk 0:00:17.5]} 49... f4 {[%clk 0:00:06.9]}
50. Ra3 {[%clk 0:00:16.1]} 50... Rf1 {[%clk 0:00:03.5]} 51. Ra8+ {[%clk
0:00:15.4]} 51... Kh7 {[%clk 0:00:03.2]} 52. Kf7 {[%clk 0:00:15.8]} 52... f3
{[%clk 0:00:03.2]} 53. e7 {[%clk 0:00:16.2]} 53... Re1 {[%clk 0:00:01.4]} 54.
e8=Q {[%clk 0:00:13.7]} 54... Rxe8 {[%clk 0:00:01.4]} 55. Kxe8 {[%clk
0:00:14.1]} 55... g6 {[%clk 0:00:01.4]} 56. Ra7+ {[%clk 0:00:13.6]} 1-0

[Event "*** Titled Tuesday Blitz"]
[Site "Chess.com"]
[Date "2020.04.07"]
[Round "5"]
[White "steepedgames"]
[Black "Alonmindlin"]
[Result "1-0"]
[WhiteElo "2452"]
[BlackElo "2655"]
[TimeControl "180+1"]
[EndTime "13:57:24 PDT"]
[Termination "steepedgames won by resignation"]

1. d4 {[%clk 0:02:49.9]} 1... Nf6 {[%clk 0:02:59.2]} 2. Nf3 {[%clk 0:02:50.6]}
2... e6 {[%clk 0:02:58.6]} 3. Bg5 {[%clk 0:02:49.9]} 3... Be7 {[%clk 0:02:57.4]}
4. Nbd2 {[%clk 0:02:49.4]} 4... d5 {[%clk 0:02:57.7]} 5. e3 {[%clk 0:02:48.4]}
5... Nbd7 {[%clk 0:02:57.8]} 6. Bd3 {[%clk 0:02:48.3]} 6... b6 {[%clk
0:02:58.2]} 7. a4 {[%clk 0:02:44.8]} 7... Bb7 {[%clk 0:02:56.3]} 8. a5 {[%clk
0:02:45.2]} 8... c5 {[%clk 0:02:56.7]} 9. axb6 {[%clk 0:02:34.5]} 9... axb6
{[%clk 0:02:56]} 10. Bb5 {[%clk 0:02:31.9]} 10... h6 {[%clk 0:02:44.2]} 11. Bh4
{[%clk 0:02:20.3]} 11... O-O {[%clk 0:02:32.6]} 12. O-O {[%clk 0:02:18.9]} 12...
Qc7 {[%clk 0:02:27.1]} 13. c3 {[%clk 0:02:12.3]} 13... Bc6 {[%clk 0:02:22.5]}
14. Qe2 {[%clk 0:01:55.7]} 14... Qb7 {[%clk 0:02:03]} 15. Ne5 {[%clk 0:01:41.6]}
15... Rxa1 {[%clk 0:01:51.6]} 16. Rxa1 {[%clk 0:01:26.4]} 16... Bxb5 {[%clk
0:01:38.7]} 17. Qxb5 {[%clk 0:01:27.3]} 17... g5 {[%clk 0:01:38.2]} 18. Bg3
{[%clk 0:01:21.7]} 18... Nxe5 {[%clk 0:01:38.7]} 19. Bxe5 {[%clk 0:01:15.8]}
19... Nd7 {[%clk 0:01:38.9]} 20. Bg3 {[%clk 0:01:11.5]} 20... h5 {[%clk
0:01:34.6]} 21. h3 {[%clk 0:01:00.5]} 21... h4 {[%clk 0:01:35]} 22. Bh2 {[%clk
0:01:00.3]} 22... Rc8 {[%clk 0:01:23.2]} 23. Ra6 {[%clk 0:00:50]} 23... Bd8
{[%clk 0:01:05.6]} 24. Nb3 {[%clk 0:00:48]} 24... c4 {[%clk 0:00:58.6]} 25. Nd2
{[%clk 0:00:42.7]} 25... Kf8 {[%clk 0:00:50.7]} 26. Bd6+ {[%clk 0:00:40.5]}
26... Ke8 {[%clk 0:00:49.8]} 27. Nf3 {[%clk 0:00:38.3]} 27... f6 {[%clk
0:00:48.6]} 28. Kf1 {[%clk 0:00:35.9]} 28... Ra8 {[%clk 0:00:48.7]} 29. Rxa8
{[%clk 0:00:34.9]} 29... Qxa8 {[%clk 0:00:49.6]} 30. Ba3 {[%clk 0:00:33.5]}
30... Be7 {[%clk 0:00:45.3]} 31. Bxe7 {[%clk 0:00:32.5]} 31... Kxe7 {[%clk
0:00:45.9]} 32. Nd2 {[%clk 0:00:27.2]} 32... f5 {[%clk 0:00:31.6]} 33. Ke2
{[%clk 0:00:27.2]} 33... g4 {[%clk 0:00:31.1]} 34. Qb4+ {[%clk 0:00:26.9]} 34...
Kf6 {[%clk 0:00:28.5]} 35. Qd6 {[%clk 0:00:26.1]} 35... gxh3 {[%clk 0:00:28]}
36. gxh3 {[%clk 0:00:25.1]} 36... Qe8 {[%clk 0:00:26]} 37. Nf3 {[%clk
0:00:24.1]} 37... b5 {[%clk 0:00:20.9]} 38. Ne5 {[%clk 0:00:22.8]} 38... Nxe5
{[%clk 0:00:20.8]} 39. Qxe5+ {[%clk 0:00:23]} 39... Ke7 {[%clk 0:00:20.8]} 40.
Qg7+ {[%clk 0:00:23]} 40... Kd6 {[%clk 0:00:21.1]} 41. Qg5 {[%clk 0:00:22.6]}
41... Qe7 {[%clk 0:00:21.1]} 42. Qf4+ {[%clk 0:00:22.5]} 42... Kc6 {[%clk
0:00:21.2]} 43. f3 {[%clk 0:00:22.8]} 43... b4 {[%clk 0:00:20.6]} 44. Kf2 {[%clk
0:00:22.9]} 44... Kb5 {[%clk 0:00:20.9]} 45. e4 {[%clk 0:00:22.2]} 45... Ka4
{[%clk 0:00:20.4]} 46. exf5 {[%clk 0:00:21.6]} 46... exf5 {[%clk 0:00:21.3]} 47.
Qxf5 {[%clk 0:00:22]} 47... Kb3 {[%clk 0:00:21.9]} 48. Qxd5 {[%clk 0:00:20.7]}
48... Kxb2 {[%clk 0:00:22.3]} 49. Qxc4 {[%clk 0:00:20.5]} 49... bxc3 {[%clk
0:00:22.1]} 50. Qb5+ {[%clk 0:00:19.9]} 50... Kc2 {[%clk 0:00:21.3]} 51. d5
{[%clk 0:00:20.8]} 51... Qa7+ {[%clk 0:00:20.2]} 52. Ke2 {[%clk 0:00:20.4]}
52... Qe7+ {[%clk 0:00:20.8]} 53. Kf2 {[%clk 0:00:20.3]} 53... Kd2 {[%clk
0:00:21.4]} 54. d6 {[%clk 0:00:18.5]} 54... Qe3+ {[%clk 0:00:19.7]} 55. Kg2
{[%clk 0:00:18.8]} 55... c2 {[%clk 0:00:19.5]} 56. d7 {[%clk 0:00:18.8]} 56...
Qd4 {[%clk 0:00:19.8]} 57. Qa5+ {[%clk 0:00:16.5]} 57... Kd1 {[%clk 0:00:19.4]}
58. d8=Q {[%clk 0:00:17]} 58... Qxd8 {[%clk 0:00:14]} 59. Qxd8+ {[%clk
0:00:17.9]} 59... Ke2 {[%clk 0:00:14.7]} 60. Qe7+ {[%clk 0:00:18.1]} 1-0

[Event "*** Titled Tuesday Blitz"]
[Site "Chess.com"]
[Date "2020.04.07"]
[Round "5"]
[White "Jeffinho023"]
[Black "Leonid_Starozhilov"]
[Result "1-0"]
[WhiteElo "2457"]
[BlackElo "2659"]
[TimeControl "180+1"]
[EndTime "13:57:24 PDT"]
[Termination "Jeffinho023 won on time"]

1. d4 {[%clk 0:03:00.9]} 1... Nf6 {[%clk 0:02:59.1]} 2. Nf3 {[%clk 0:03:00.5]}
2... g6 {[%clk 0:02:58.9]} 3. g3 {[%clk 0:03:00.8]} 3... Bg7 {[%clk 0:02:59.4]}
4. Bg2 {[%clk 0:03:01.1]} 4... O-O {[%clk 0:03:00.3]} 5. O-O {[%clk 0:03:01.2]}
5... d6 {[%clk 0:03:01.2]} 6. c4 {[%clk 0:03:00.9]} 6... c6 {[%clk 0:03:02.1]}
7. Nc3 {[%clk 0:03:00.5]} 7... Bf5 {[%clk 0:03:01.9]} 8. Re1 {[%clk 0:02:57.3]}
8... Ne4 {[%clk 0:03:01.8]} 9. Bd2 {[%clk 0:02:48]} 9... Nxc3 {[%clk 0:03:00.9]}
10. Bxc3 {[%clk 0:02:47.3]} 10... Be4 {[%clk 0:03:01.7]} 11. Bh3 {[%clk
0:02:45.2]} 11... Bxf3 {[%clk 0:03:01.2]} 12. exf3 {[%clk 0:02:44.8]} 12... e6
{[%clk 0:03:01.9]} 13. f4 {[%clk 0:02:13.3]} 13... d5 {[%clk 0:03:01.2]} 14. b3
{[%clk 0:02:08.3]} 14... Nd7 {[%clk 0:03:00.6]} 15. Qe2 {[%clk 0:02:04.9]} 15...
Re8 {[%clk 0:02:56.1]} 16. Red1 {[%clk 0:02:00.7]} 16... Rc8 {[%clk 0:02:42.2]}
17. Rac1 {[%clk 0:01:57.9]} 17... a6 {[%clk 0:02:41]} 18. a4 {[%clk 0:01:53.6]}
18... Qb6 {[%clk 0:02:27.2]} 19. Qa2 {[%clk 0:01:25.2]} 19... h5 {[%clk
0:02:17]} 20. Bg2 {[%clk 0:01:23.8]} 20... Nf6 {[%clk 0:02:14.8]} 21. h4 {[%clk
0:01:18.8]} 21... Ng4 {[%clk 0:02:13.6]} 22. c5 {[%clk 0:01:14.3]} 22... Qc7
{[%clk 0:02:12.8]} 23. b4 {[%clk 0:01:12.8]} 23... Ra8 {[%clk 0:02:01.1]} 24.
Qe2 {[%clk 0:01:09.1]} 24... Nh6 {[%clk 0:02:01.2]} 25. Bh3 {[%clk 0:01:04]}
25... Nf5 {[%clk 0:02:00.9]} 26. Qd3 {[%clk 0:01:01.1]} 26... Qd7 {[%clk
0:01:52.1]} 27. Ra1 {[%clk 0:01:00.1]} 27... Bf6 {[%clk 0:01:46.9]} 28. Re1
{[%clk 0:00:55.8]} 28... Kg7 {[%clk 0:01:44.9]} 29. a5 {[%clk 0:00:41.6]} 29...
Re7 {[%clk 0:01:39.3]} 30. Re2 {[%clk 0:00:41.4]} 30... Rae8 {[%clk 0:01:39.7]}
31. Rae1 {[%clk 0:00:41.6]} 31... Kg8 {[%clk 0:01:39.5]} 32. Bxf5 {[%clk
0:00:31]} 32... exf5 {[%clk 0:01:29.8]} 33. Rxe7 {[%clk 0:00:19.4]} 33... Bxe7
{[%clk 0:01:29.5]} 34. Re3 {[%clk 0:00:14.7]} 34... Rd8 {[%clk 0:01:26.3]} 35.
Qe2 {[%clk 0:00:15]} 35... Bf6 {[%clk 0:01:26.3]} 36. Kg2 {[%clk 0:00:15.4]}
36... Kg7 {[%clk 0:01:20.5]} 37. Qe1 {[%clk 0:00:15.6]} 37... Rg8 {[%clk
0:01:10.3]} 38. Qe2 {[%clk 0:00:14.9]} 38... Bd8 {[%clk 0:01:09.5]} 39. Re5
{[%clk 0:00:12.8]} 39... f6 {[%clk 0:00:58.8]} 40. Re6 {[%clk 0:00:11]} 40...
Kf7 {[%clk 0:00:59.2]} 41. Re3 {[%clk 0:00:07.1]} 41... Bc7 {[%clk 0:00:59.2]}
42. Bd2 {[%clk 0:00:06.5]} 42... Rh8 {[%clk 0:00:52.1]} 43. Qe1 {[%clk
0:00:05.4]} 43... g5 {[%clk 0:00:35.8]} 44. fxg5 {[%clk 0:00:05.3]} 44... f4
{[%clk 0:00:20.4]} 45. Rf3 {[%clk 0:00:04.3]} 45... fxg5 {[%clk 0:00:17.1]} 46.
hxg5 {[%clk 0:00:03.8]} 46... h4 {[%clk 0:00:17.4]} 47. Bxf4 {[%clk 0:00:03.5]}
47... Bxf4 {[%clk 0:00:02]} 48. Rxf4+ {[%clk 0:00:03.7]} 48... Kg6 {[%clk
0:00:02.9]} 49. gxh4 {[%clk 0:00:04]} 49... Re8 {[%clk 0:00:02.5]} 50. Qb1+
{[%clk 0:00:04.5]} 50... Kg7 {[%clk 0:00:02.5]} 51. Qf5 {[%clk 0:00:05]} 51...
Re6 {[%clk 0:00:02.7]} 52. Qg4 {[%clk 0:00:04.8]} 52... Re5 {[%clk 0:00:02.7]}
53. Qxd7+ {[%clk 0:00:04.7]} 1-0